{"text_format":"1","workbook":"xlsx","n_sheets":1,"sheets":["Feuil1"],"not_rendered":{"charts":0,"images":0,"macros":1,"external_links":0,"defined_names":19,"comments":0,"pivot_tables":0},"unopened":[],"bounds":{"document_bytes":16777216,"sheet_cells":100000,"rows_first":2000,"rows_last":500,"rows_between":2000,"halvings":0,"cell_chars":16384,"cell_head_chars":4096},"cells_cut":0,"cells_raw":0,"read":"whole","date_system":"1900"}

{"sheet":"Feuil1","index":0,"n_rows":49,"n_cols":18,"rows_kept":49,"cut":false,"hidden":false,"merged":[[0,4,0,8],[13,1,13,3],[25,1,25,3]]}
[null,null,null,null,"LISSAGE DE PRÊTS\nwww.calculateurimmo.fr"]
[null,null,null,null,"Prêt Principal"]
[]
[{"$f":"DATE(H4,COUNTIF(G4,\"Janvier\")*1+COUNTIF(G4,\"Février\")*2+COUNTIF(G4,\"Mars\")*3+COUNTIF(G4,\"Avril\")*4+COUNTIF(G4,\"Mai\")*5+COUNTIF(G4,\"Juin\")*6+COUNTIF(G4,\"Juillet\")*7+COUNTIF(G4,\"Août\")*8+COUNTIF(G4,\"Septembre\")*9+COUNTIF(G4,\"Octobre\")*10+COUNTIF(G4,\"Novembre\")*11+COUNTIF(G4,\"Décembre\")*12,1)","v":"2017-01-01"},null,null,null,null,"Date de début :","Janvier",2017]
[]
[{"$f":"DATE(YEAR(A4),MONTH(A4)+G8-1,1)","v":"2016-12-01"},null,null,null,null,"Montant du prêt :",null,"€"]
[]
[null,null,null,null,null,"Durée :",null,"mois",null,"Date de fin :",{"$f":"IF(AND(G4<>\"\",H4>=1990,H4<=2030,G8>0),A6,\"\")","v":""}]
[]
[null,null,null,null,null,"Taux d'intérêt fixe :",null," %"]
[]
[{"$f":"IF(AND(G4<>\"\",H4>=1990,H4<=2030,G6>0,G8>0,G10>0,G12>=0),1,0)","v":0},null,null,null,null,"Taux d'assurance :",null," % du montant emprunté"]
[]
[null,"Cocher la case pour intégrer ce prêt >>>",null,null,"Prêt supplémentaire n°1"]
[]
[{"$f":"IF(A14=TRUE,1,0)","v":0},null,null,null,null,"Date de début :","Janvier",2017,null,{"$f":"IF(AND(activ2=1,A18<A4),\"La date de début doit être supérieure ou égale à celle du prêt principal\",\"\")","v":""}]
[]
[{"$f":"DATE(H16,COUNTIF(G16,\"Janvier\")*1+COUNTIF(G16,\"Février\")*2+COUNTIF(G16,\"Mars\")*3+COUNTIF(G16,\"Avril\")*4+COUNTIF(G16,\"Mai\")*5+COUNTIF(G16,\"Juin\")*6+COUNTIF(G16,\"Juillet\")*7+COUNTIF(G16,\"Août\")*8+COUNTIF(G16,\"Septembre\")*9+COUNTIF(G16,\"Octobre\")*10+COUNTIF(G16,\"Novembre\")*11+COUNTIF(G16,\"Décembre\")*12,1)","v":"2017-01-01"},null,null,null,null,"Montant du prêt :",null,"€"]
[]
[{"$f":"IF(AND(G16<>\"\",H16>=1990,H16<=2040),DATE(YEAR(A18),MONTH(A18)+G20-1,1),0)","v":"2016-12-01"},null,null,null,null,"Durée :",null,"mois",null,{"$f":"IF(activ2=1,\"Date de fin :\",\"\")","v":""},{"$f":"IF(AND(activ2=1,G16<>\"\",H16>=1990,H16<=2030,G20>0),A20,\"\")","v":""},{"$f":"IF(AND(activ2=1,A20>A6),\"La date de fin doit être inférieure ou égale à celle du prêt principal\",\"\")","v":""}]
[]
[{"$f":"IF(A4<A18,DATEDIF(A4,A18,\"m\"),0)","v":0},null,null,null,null,"Taux d'intérêt fixe :",null," %",null,{"$f":"IF(activ2=1,\"Mensualité :\",\"\")","v":""},{"$f":"IF(AND(test2=1,tauxinteret2>0),(pret2 *(tauxinteret2 * 0.01 / 12))/(1 - (1 + (tauxinteret2 * 0.01 / 12)) ^ (-duree2)),IF(AND(test2=1,tauxinteret2=0),pret2/duree2,\"\"))","v":""},{"$f":"IF(activ2=1,\"€/mois hors assurance\",\"\")","v":""}]
[]
[{"$f":"IF(AND(activ2=1,G16<>\"\",H16>=1990,H16<=2040,pret2>0,duree2>0,tauxinteret2>=0,tauxassurance2>=0,A18>=$A$4,A20<=$A$6),1,0)","v":0},null,null,null,null,"Taux d'assurance :",null," % du montant emprunté",null,{"$f":"IF(activ2=1,\"Assurance :\",\"\")","v":""},{"$f":"IF(test2=1,(pret2 * tauxassurance2 / 100) / 12,\"\")","v":""},{"$f":"IF(activ2=1,\"€/mois\",\"\")","v":""}]
[]
[null,"Cocher la case pour intégrer ce prêt >>>",null,null,"Prêt supplémentaire n°2"]
[]
[{"$f":"IF(A26=TRUE,1,0)","v":0},null,null,null,null,"Date de début :","Janvier",2017,null,{"$f":"IF(AND(activ3=1,A30<A4),\"La date de début doit être supérieure ou égale à celle du prêt principal\",\"\")","v":""}]
[]
[{"$f":"DATE(H28,COUNTIF(G28,\"Janvier\")*1+COUNTIF(G28,\"Février\")*2+COUNTIF(G28,\"Mars\")*3+COUNTIF(G28,\"Avril\")*4+COUNTIF(G28,\"Mai\")*5+COUNTIF(G28,\"Juin\")*6+COUNTIF(G28,\"Juillet\")*7+COUNTIF(G28,\"Août\")*8+COUNTIF(G28,\"Septembre\")*9+COUNTIF(G28,\"Octobre\")*10+COUNTIF(G28,\"Novembre\")*11+COUNTIF(G28,\"Décembre\")*12,1)","v":"2017-01-01"},null,null,null,null,"Montant du prêt :",null,"€"]
[]
[{"$f":"IF(AND(G28<>\"\",H28>=1990,H28<=2040),DATE(YEAR(A30),MONTH(A30)+G32-1,1),0)","v":"2016-12-01"},null,null,null,null,"Durée :",null,"mois",null,{"$f":"IF(activ3=1,\"Date de fin :\",\"\")","v":""},{"$f":"IF(AND(activ3=1,G28<>\"\",H28>=1990,H28<=2030,G32>0),A32,\"\")","v":""},{"$f":"IF(AND(activ3=1,A32>A6),\"La date de fin doit être inférieure ou égale à celle du prêt principal\",\"\")","v":""}]
[]
[{"$f":"IF(A4<A30,DATEDIF(A4,A30,\"m\"),0)","v":0},null,null,null,null,"Taux d'intérêt fixe :",null," %",null,{"$f":"IF(activ3=1,\"Mensualité :\",\"\")","v":""},{"$f":"IF(AND(test3=1,tauxinteret3>0),(pret3 *(tauxinteret3 * 0.01 / 12))/(1 - (1 + (tauxinteret3 * 0.01 / 12)) ^ (-duree3)),IF(AND(test3=1,tauxinteret3=0),pret3/duree3,\"\"))","v":""},{"$f":"IF(activ3=1,\"€/mois hors assurance\",\"\")","v":""}]
[]
[{"$f":"IF(AND(activ3=1,G28<>\"\",H28>=1990,H28<=2040,pret3>0,duree3>0,tauxinteret3>=0,tauxassurance3>=0,A30>=$A$4,A32<=$A$6),1,0)","v":0},null,null,null,null,"Taux d'assurance :",null," % du montant emprunté",null,{"$f":"IF(activ3=1,\"Assurance :\",\"\")","v":""},{"$f":"IF(test3=1,(pret3 * tauxassurance3 / 100) / 12,\"\")","v":""},{"$f":"IF(activ3=1,\"€/mois\",\"\")","v":""}]
[]
[1]
[]
[null,null,null,null,null,"Mensualité lissée :",null,"€/mois hors assurance"]
[]
[null,null,null,null,null,"Coût total des intérêts :",null,"€"]
[null,null,null,null,null,"Coût total de l'assurance :",null,"€"]
[null,null,null,null,null,"Coût total du prêt :",null,"€"]
[]
[]
[]
[null,null,null,null,"Tableau d'amortissement du Prêt Principal",null,null,null,null,"Tableau d'amortissement du Prêt supplémentaire n°1",null,null,null,null,"Tableau d'amortissement du Prêt supplémentaire n°2"]
[null,"N°","Date",null,"Capital\nrestant dû","Intérêts","Assurance","Mensualité\nhors assurance",null,"Capital\nrestant dû","Intérêts","Assurance","Mensualité\nhors assurance",null,"Capital\nrestant dû","Intérêts","Assurance","Mensualité\nhors assurance"]